Workbook

Sheet Tabelle1
B3: Jahr | C3: Anteile | D3: Kurs je Anteil € | E3: Depotwert €
B4: 2006 | C4: 19.34 | D4: 106.06 | E4: 2063
B5: 2007 | C5: 53.73 | D5: 101.43 | E5: 5450
B6: 2008 | C6: 71.75 | D6: 88.3 | E6: 6337
B7: 2009 | C7: 92.6 | D7: 82.11 | E7: 7604
B8: 2010 | C8: 91.98 | D8: 88.31 | E8: 8123
B9: 2011 | C9: 91.36 | D9: 94.05 | E9: 8593
B10: 2012 | C10: 90.76 | D10: 99.52 | E10: 9032
B11: 2013 | C11: 90.16 | D11: 103.55 | E11: 9336
B12: 2014 | C12: 89.57 | D12: 106 | E12: 9496
B13: 2015 | C13: =C12-0.6 -> 88.97 | D13: =D12+F13 -> 108.12 | E13: =C13*D13 -> 9619.4364 | F13: =D12*0.02 -> 2.12
B14: 2016 | C14: =C13-0.6 -> 88.37 | D14: =D13+F14 -> 110.2824 | E14: =C14*D14 -> 9745.655688 | F14: =D13*0.02 -> 2.1624
B15: 2017 | C15: 87.77 | D15: =D14+F15 -> 112.488048 | E15: 9873.075973 | F15: =D14*0.02 -> 2.205648
B16: 2018 | C16: 87.17 | D16: =D15+F16 -> 114.737809 | E16: 10001.69481 | F16: =D15*0.02 -> 2.24976096
B17: 2019 | C17: 86.57 | D17: =D16+F17 -> 117.0325651 | E17: 10131.50916 | F17: =D16*0.02 -> 2.294756179
B18: 2020 | C18: 85.97 | D18: =D17+F18 -> 119.3732164 | E18: 10262.51542 | F18: =D17*0.02 -> 2.340651303
B19: 2021 | C19: 85.37 | D19: 121.7606808 | E19: 10394.70932 | F19: =D18*0.02 -> 2.387464329
B20: 2022 | C20: 84.77 | D20: 124.1958944 | E20: 10528.08597 | F20: 2.435213615
B21: 2023 | C21: 84.17 | D21: 126.6798123 | E21: 10662.6398 | F21: 2.483917888
B22: 2024 | C22: 83.57 | D22: 129.2134085 | E22: 10798.36455 | F22: 2.533596245
B23: 2025 | C23: 82.97 | D23: 131.7976767 | E23: 10935.25323 | F23: 2.58426817
B24: 2026 | C24: 82.37 | D24: 134.4336302 | E24: 11073.29812 | F24: 2.635953534
B25: 2027 | C25: 81.77 | D25: 137.1223028 | E25: 11212.4907 | F25: 2.688672604
B26: 2028 | C26: 81.17 | D26: 139.8647489 | E26: 11352.82167 | F26: 2.742446057
B27: 2029 | C27: 80.57 | D27: 142.6620439 | E27: 11494.28087 | F27: 2.797294978
B28: 2030 | C28: 79.97 | D28: 145.5152847 | E28: 11636.85732 | F28: 2.853240877
B29: 2031 | C29: 79.37 | D29: 148.4255904 | E29: 11780.53911 | F29: 2.910305695
B30: 2032 | C30: 78.77 | D30: 151.3941022 | E30: 11925.31343 | F30: 2.968511809
B31: 2033 | C31: 78.17 | D31: 154.4219843 | E31: 12071.16651 | F31: 3.027882045
B32: 2034 | C32: 77.57 | D32: 157.510424 | E32: 12218.08359 | F32: 3.088439686
B33: 2035 | C33: 76.97 | D33: 160.6606325 | E33: 12366.04888 | F33: 3.150208479
B34: 2036 | C34: 76.37 | D34: 163.8738451 | E34: 12515.04555 | F34: 3.213212649
B35: 2037 | C35: 75.77 | D35: 167.151322 | E35: 12665.05567 | F35: 3.277476902
B36: 2038 | C36: 75.17 | D36: 170.4943484 | E36: 12816.06017 | F36: 3.34302644
B37: 2039 | C37: 74.57 | D37: 173.9042354 | E37: 12968.03883 | F37: 3.409886969
B38: 2040 | C38: 73.97 | D38: 177.3823201 | E38: 13120.97022 | F38: 3.478084708

Sheet Tabelle2

Sheet Tabelle3
